fUST/lending_fUST_20240520
["ID","MTS","AMOUNT","RATE_DAILY","PERIOD"]
[327543071,1716202239315,-918.53821034,0.00019999,2]
[327543074,1716202239326,-500.0,0.00019999,2]
[327543076,1716202239336,-500.0,0.00019999,2]
[327543078,1716202239347,-918.53821034,0.00019999,2]
[327543080,1716202239356,-500.0,0.00019999,2]
[327543082,1716202239366,-587.35886765,0.00019999,2]
[327543084,1716202239376,-918.53821034,0.00019999,2]
[327543086,1716202239387,-500.0,0.00019999,2]
[327543088,1716202239397,-500.0,0.00019999,2]
[327543090,1716202239406,-918.53821034,0.00019999,2]
[327543092,1716202239415,-500.0,0.00019999,2]
[327543094,1716202239424,-918.53821034,0.00019999,2]
[327543096,1716202239433,-500.0,0.00019999,2]
[327543097,1716202239443,-45.72436151,0.00019999,2]
[327543100,1716202239456,-872.81384883,0.00019999,2]
[327543102,1716202239466,-918.53821034,0.00019999,2]
[327543104,1716202239475,-348.93002149,0.00019999,2]
[327543105,1716202239484,-918.53821034,0.00019999,2]
[327543107,1716202239494,-918.53821034,0.00019999,2]
[327543109,1716202239503,-918.53821034,0.00019999,2]
[327543111,1716202239513,-500.0,0.00019999,2]
[327543113,1716202239523,-918.53821034,0.00019999,2]
[327543115,1716202239534,-500.0,0.00019999,2]
[327543117,1716202239546,-918.53821034,0.00019999,2]
[327543119,1716202239556,-500.0,0.00019999,2]
[327543121,1716202239567,-918.53821034,0.00019999,2]
[327543123,1716202239577,-918.53821034,0.00019999,2]
[327543125,1716202239590,-918.53821034,0.00019999,2]
[327543127,1716202239600,-500.0,0.00019999,2]
[327543129,1716202239610,-918.53821034,0.00019999,2]
[327543131,1716202239622,-918.53821034,0.00019999,2]
[327543133,1716202239632,-500.0,0.00019999,2]
[327543135,1716202239643,-918.53821034,0.00019999,2]
[327543137,1716202239653,-918.53821034,0.00019999,2]
[327543139,1716202239663,-918.53821034,0.00019999,2]
[327543141,1716202239672,-918.53821034,0.00019999,2]
[327543143,1716202239682,-918.53821034,0.00019999,2]
[327543144,1716202239690,-918.53821034,0.00019999,2]
[327543145,1716202239700,-918.53821034,0.00019999,2]
[327543147,1716202239712,-918.53821034,0.00019999,2]
[327543149,1716202239723,-918.53821034,0.00019999,2]
[327543151,1716202239733,-918.53821034,0.00019999,2]
[327543153,1716202239743,-918.53821034,0.00019999,2]
[327543155,1716202239754,-918.53821034,0.00019999,2]
[327543157,1716202239764,-918.53821034,0.00019999,2]
[327543159,1716202239774,-918.53821034,0.00019999,2]
[327543161,1716202239784,-918.53821034,0.00019999,2]
[327543163,1716202239794,-918.53821034,0.00019999,2]
[327543165,1716202239804,-918.53821034,0.00019999,2]
[327543167,1716202239814,-918.53821034,0.00019999,2]
[327543168,1716202239823,-918.53821034,0.00019999,2]
[327543170,1716202239833,-918.53821034,0.00019999,2]
[327543172,1716202239843,-918.53821034,0.00019999,2]
[327543174,1716202239853,-918.53821034,0.00019999,2]
[327543176,1716202239863,-918.53821034,0.00019999,2]
[327543178,1716202239873,-918.53821034,0.00019999,2]
[327543180,1716202239883,-918.53821034,0.00019999,2]
[327543182,1716202239893,-918.53821034,0.00019999,2]
[327543184,1716202239902,-1027.03240688,0.00019999,2]
[327543199,1716202240058,-405.78575626,0.00019999,2]
[327543201,1716202240069,-1432.81816314,0.00019999,2]
[327543203,1716202240078,-252.30755197,0.00019999,2]
[327543273,1716202249232,-1180.51061117,0.00019999,2]
[327543274,1716202249242,-1432.81816314,0.00019999,2]
[327543275,1716202249252,-1432.81816314,0.00019999,2]
[327543276,1716202249262,-1432.81816314,0.00019999,2]
[327543277,1716202249271,-1432.81816314,0.00019999,2]
[327543278,1716202249281,-1432.81816314,0.00019999,2]
[327543279,1716202249291,-1432.81816314,0.00019999,2]
[327543280,1716202249300,-1432.81816314,0.00019999,2]
[327543281,1716202249310,-1432.81816314,0.00019999,2]
[327543282,1716202249320,-1432.81816314,0.00019999,2]
[327543283,1716202249330,-1432.81816314,0.00019999,2]
[327543284,1716202249339,-1432.81816314,0.00019999,2]
[327543285,1716202249349,-1432.81816314,0.00019999,2]
[327543286,1716202249358,-1432.81816314,0.00019999,2]
[327543287,1716202249368,-1432.81816314,0.00019999,2]
[327543288,1716202249378,-1432.81816314,0.00019999,2]
[327543289,1716202249388,-1432.81816314,0.00019999,2]
[327543290,1716202249397,-1461.47452641,0.00019999,2]
[327543291,1716202249407,-1461.47452641,0.00019999,2]
[327543292,1716202249416,-1461.47452641,0.00019999,2]
[327543293,1716202249425,-1461.47452641,0.00019999,2]
[327543294,1716202249435,-1461.47452641,0.00019999,2]
[327543295,1716202249444,-1565.86556399,0.00019999,2]
[327543296,1716202249454,-1313.49334904,0.0002,3]
[327543297,1716202249463,-22884.45071895,0.0002,2]
[327543298,1716202249472,-12090.98479346,0.0002,2]
[327543314,1716203120801,862.76416356,9.999e-05,2]
[327543315,1716203138225,-647.44823503,0.00018,5]
[327543316,1716203228130,-239.15823767,0.00017999,2]
[327543336,1716203434081,-575.17610904,0.00017997,2]
[327543337,1716203434090,-1496.69412767,0.00017998,2]
[327543338,1716203434100,-11354.71776329,0.00018,5]
[327543339,1716203434112,-324.87774632,0.00018,5]
[327543369,1716203440418,-257.13268637,0.00018,5]
[327543371,1716203440430,-1076.59660976,0.00018,5]
[327543373,1716203440442,-1497.5,0.00018,5]
[327543430,1716203448437,-479.3134242,0.00017999,2]
[327543431,1716203448447,-14583.0865758,0.00018,5]
[327543432,1716203530574,702.72526149,9.999e-05,2]
[327543434,1716203999380,249.72229401,9.999e-05,2]
[327543436,1716204086884,200.2554242,0.0002651,120]
[327543437,1716204335121,-249.72229401,0.00016852,2]
[327543438,1716204335142,-471.0509379,0.00016853,2]
[327543439,1716204335162,-14.35779045,0.00016998,2]
[327543440,1716204444095,-249.72229401,0.00016997,2]
[327543441,1716204444116,-987.17490279,0.00016998,2]
[327543442,1716204444137,-148.83015855,0.00016998,2]
[327543443,1716204444158,-194.39143777,0.00017996,2]
[327543444,1716204444179,-208.66946345,0.00017996,2]
[327543445,1716204444200,-1595.95398665,0.00017998,2]
[327543446,1716204448114,-475.55247191,0.00017998,2]
[327543448,1716204551110,-249.72229401,0.00017997,2]
[327543449,1716204551132,-13953.80211553,0.00017998,2]
[327543574,1716204640668,-249.72229401,0.00017997,2]
[327543575,1716204640678,-8777.43503447,0.00017998,2]
[327543576,1716204640688,-1807.8960946,0.00018,5]
[327543577,1716204640783,-18450.74428883,0.00018,5]
[327543578,1716204640793,-561.74038536,0.000189,2]
[327543579,1716204640803,-150.0,0.000189,2]
[327543580,1716204640813,-923.04941092,0.00018998,2]
[327543581,1716204640823,-4717.20952345,0.00019,2]
[327543610,1716204643772,-2696.50411585,0.00019,2]
[327543612,1716204643782,-191.89384391,0.00019799,2]
[327543614,1716204643793,-620.00004246,0.00019947,2]
[327543615,1716204643802,-239.15823767,0.00019998,2]
[327543616,1716204643812,-588.25192056,0.00019999,2]
[327543617,1716204643821,-1600.59525261,0.00019999,2]
[327543618,1716204643832,-616.96871089,0.00019999,2]
[327543619,1716204643842,-561.30902251,0.00019999,2]
[327543620,1716204643851,-656.74667452,0.0002,3]
[327543621,1716204643861,-2645.14557424,0.0002,3]
[327543622,1716204643871,-27068.42660721,0.0002,2]
[327543637,1716205543066,500.0,0.00024209,30]
[327543638,1716205550149,-249.72229401,0.00018739,2]
[327543639,1716205550169,-429.39291418,0.0001874,2]
[327543640,1716205630101,-427.73602523,0.0001874,2]
[327543752,1716205846132,-129.32861127,0.0001874,2]
[327543753,1716205846141,-587.57368287,0.00019898,2]
[327543766,1716205926786,1126.2,0.00016,30]
[327543771,1716205983800,1000.0,0.00024209,30]
[327543781,1716206554537,200.0,0.0002421,30]
[327543783,1716206747178,-826.35485884,0.00019881,2]
[327543784,1716206777334,249.72229401,9.999e-05,2]
[327543785,1716206854099,-249.72229401,0.00019879,2]
[327543786,1716206854237,-155.69736117,0.00019879,3]
[327543846,1716207038447,-249.72229401,0.00019896,2]
[327543847,1716207038456,-136.45842225,0.00019897,2]
[327543848,1716207038468,-355.06441494,0.00019897,2]
[327543849,1716207038477,-32.42631925,0.00019898,2]
[327543850,1716207038488,-1244.72410653,0.00019899,3]
[327543851,1716207038497,-24703.05271226,0.000199,2]
[327543900,1716207047576,-649.13818402,0.00019898,2]
[327543901,1716207048203,273.37336231,9.9e-05,2]
[327543905,1716207139558,96285.8,0.0002421,30]
[327543906,1716207160931,4512.19999999,0.0002651,120]
[327543931,1716207672374,249.72229401,9.999e-05,2]
[327543935,1716207939167,-249.72229401,0.00019847,2]
[327543936,1716207939187,-620.0000001,0.00019848,2]
[327543937,1716207939209,-50.2710384,0.00019896,2]
[327543938,1716208025103,-226.62663769,0.00019896,2]
[327543986,1716208232701,-471.0509379,0.00018949,2]
[327543989,1716208232711,-3745.11101971,0.00019896,2]
[327544018,1716208241075,-2655.11229578,0.00019896,2]
[327544019,1716208241088,-736.59264772,0.00019896,2]
[327544020,1716208241098,-207.34451471,0.00019898,2]
[327544021,1716208241108,-378.6576051,0.00019898,2]
[327544022,1716208241118,-430.08248255,0.00019898,2]
[327544023,1716208241128,-154.80328745,0.00019899,2]
[327544024,1716208241138,-17577.87744524,0.000199,2]
[327544025,1716208241148,-4974.68621833,0.00019997,2]
[327544026,1716208241159,-500.0,0.00019997,2]
[327544027,1716208241169,-168.79237103,0.00019998,2]
[327544028,1716208241179,-283.58690319,0.00019998,2]
[327544029,1716208241188,-244.76339608,0.00019998,2]
[327544030,1716208241198,-166.26141751,0.00019998,2]
[327544031,1716208241208,-3735.44408059,0.00019998,2]
[327544032,1716208241218,-1231.39046079,0.00019998,2]
[327544033,1716208241230,-503.01188397,0.00019998,2]
[327544063,1716208244020,-504.19230735,0.00019998,2]
[327544071,1716208246758,-162.05592317,0.00019998,2]
[327544072,1716208246767,-500.0,0.00019998,2]
[327544073,1716208246776,-200.0,0.00019998,2]
[327544074,1716208246786,-500.0,0.00019998,2]
[327544075,1716208246796,-500.0,0.00019998,2]
[327544076,1716208246806,-180.0,0.00019998,2]
[327544078,1716208246815,-500.0,0.00019998,2]
[327544080,1716208246825,-500.0,0.00019998,2]
[327544082,1716208246834,-500.0,0.00019998,2]
[327544083,1716208246844,-500.0,0.00019998,2]
[327544085,1716208246853,-576.2076603,0.00019998,2]
[327544087,1716208246863,-500.0,0.00019998,2]
[327544089,1716208246872,-500.0,0.00019998,2]
[327544091,1716208246882,-596.07442482,0.00019998,2]
[327544093,1716208246891,-500.0,0.00019998,2]
[327544094,1716208246900,-500.0,0.00019998,2]
[327544095,1716208246909,-500.0,0.00019998,2]
[327544096,1716208246920,-500.0,0.00019998,2]
[327544097,1716208246929,-500.0,0.00019998,2]
[327544098,1716208246938,-500.0,0.00019998,2]
[327544099,1716208246947,-224.48333461,0.00019998,2]
[327544100,1716208246956,-500.0,0.00019998,2]
[327544101,1716208246966,-500.0,0.00019998,2]
[327544102,1716208246975,-500.0,0.00019998,2]
[327544103,1716208246984,-500.0,0.00019998,2]
[327544104,1716208246994,-500.0,0.00019998,2]
[327544105,1716208247004,-500.0,0.00019998,2]
[327544106,1716208247013,-500.0,0.00019998,2]
[327544107,1716208247023,-500.0,0.00019998,2]
[327544108,1716208247034,-500.0,0.00019998,2]
[327544109,1716208247044,-500.0,0.00019998,2]
[327544110,1716208247054,-500.0,0.00019998,2]
[327544111,1716208247063,-500.0,0.00019998,2]
[327544112,1716208247073,-500.0,0.00019998,2]
[327544113,1716208247083,-500.0,0.00019998,2]
[327544114,1716208247093,-500.0,0.00019998,2]
[327544115,1716208247103,-500.0,0.00019998,2]
[327544116,1716208247112,-500.0,0.00019998,2]
[327544117,1716208247122,-500.0,0.00019998,2]
[327544118,1716208247132,-500.0,0.00019998,2]
[327544119,1716208247141,-500.0,0.00019998,2]
[327544120,1716208247152,-500.0,0.00019998,2]
[327544121,1716208247163,-500.0,0.00019998,2]
[327544122,1716208247172,-500.0,0.00019998,2]
[327544123,1716208247182,-500.0,0.00019998,2]
[327544124,1716208247191,-500.0,0.00019998,2]
[327544125,1716208247200,-500.0,0.00019998,2]
[327544126,1716208247211,-500.0,0.00019998,2]
[327544127,1716208247220,-324.66394211,0.00019998,2]
[327544152,1716209099171,154.79876161,9.999e-05,2]
[327544153,1716209146446,3373.07904587,9.999e-05,2]
[327544154,1716209159248,-675.22752313,0.000165,2]
[327544155,1716209159268,-203.71542399,0.00018738,2]
[327544156,1716209162461,726.28438808,9.999e-05,2]
[327544157,1716209230118,-500.0,0.00018738,2]
[327544158,1716209283473,1112.0,0.0002651,120]
[327544159,1716209352102,150.0,9e-05,2]
[327544175,1716209432674,-189.62518009,0.00018638,2]
[327544176,1716209432684,-930.1459675,0.00018648,2]
[327544177,1716209432693,-170.53789123,0.000188,2]
[327544178,1716209432703,-1321.81787787,0.000189,2]
[327544179,1716209432713,-167.0034982,0.00018983,2]
[327544180,1716209432723,-525.149807,0.00018983,2]
[327544181,1716209432733,-150.0,0.00019178,2]
[327544182,1716209432743,-196.678636,0.00019178,2]
[327544183,1716209432752,-417.22450303,0.00019463,2]
[327544184,1716209432761,-208.37629407,0.00019798,2]
[327544185,1716209432770,-1129.48729273,0.00019799,2]
[327544186,1716209432779,-457.61063069,0.00019799,2]
[327544187,1716209432788,-1129.48729271,0.00019824,2]
[327544188,1716209432798,-377.06660032,0.00019848,2]
[327544224,1716209438491,-334.39650053,0.00019848,2]
[327544234,1716209442217,-378.79359255,0.00019848,2]
[327544235,1716209442229,-39.23059931,0.00019848,2]
[327544236,1716209442239,-222.31540069,0.00019873,2]
[327544237,1716209442251,-907.17189202,0.00019873,2]
[327544238,1716209442260,-1129.48729271,0.00019897,2]
[327544239,1716209442270,-249.72229401,0.00019898,2]
[327544240,1716209442279,-234.79397471,0.00019898,2]
[327544241,1716209442289,-500.0,0.00019898,2]
[327544242,1716209442300,-41473.32187701,0.00019899,2]
[327544243,1716209442311,-1793.49230942,0.00019899,2]
[327544244,1716209442323,-4610.69781079,0.00019899,2]
[327544245,1716209442332,-313.261227,0.00019899,2]
[327544246,1716209442342,-313.261227,0.00019899,2]
[327544247,1716209442353,-151.0,0.00019899,2]
[327544248,1716209442362,-550.939857,0.00019899,2]
[327544249,1716209442371,-175.025338,0.00019899,2]
[327544250,1716209442381,-550.939857,0.00019899,2]
[327544251,1716209442390,-175.025338,0.00019899,2]
[327544252,1716209442399,-151.0,0.00019899,2]
[327544253,1716209442408,-151.0,0.00019899,2]
[327544254,1716209442418,-720.974053,0.00019899,2]
[327544255,1716209442427,-720.974053,0.00019899,2]
[327544256,1716209442436,-1012.608749,0.00019899,2]
[327544257,1716209442446,-1012.608749,0.00019899,2]
[327544258,1716209442455,-947.75106799,0.00019996,3]
[327544259,1716209442465,-155.18075614,0.00019996,2]
[327544260,1716209442474,-204.73885635,0.00019996,2]
[327544261,1716209442484,-628.82232745,0.00019996,2]
[327544262,1716209442494,-461.23185441,0.00019996,2]
[327544263,1716209442503,-500.0,0.00019996,2]
[327544264,1716209442513,-500.0,0.00019996,2]
[327544265,1716209442522,-500.0,0.00019996,2]
[327544266,1716209442531,-500.0,0.00019996,2]
[327544267,1716209442541,-500.0,0.00019996,2]
[327544268,1716209442551,-500.0,0.00019996,2]
[327544269,1716209442560,-500.0,0.00019996,2]
[327544270,1716209442570,-410.41906439,0.00019996,2]
[327544271,1716209442579,-500.0,0.00019996,2]
[327544272,1716209442589,-500.0,0.00019996,2]
[327544273,1716209442597,-500.0,0.00019996,2]
[327544274,1716209442606,-500.0,0.00019996,2]
[327544275,1716209442616,-500.0,0.00019996,2]
[327544276,1716209442626,-500.0,0.00019996,2]
[327544277,1716209442635,-500.0,0.00019996,2]
[327544279,1716209442644,-500.0,0.00019996,2]
[327544281,1716209442653,-500.0,0.00019996,2]
[327544284,1716209442662,-500.0,0.00019996,2]
[327544287,1716209442671,-500.0,0.00019996,2]
[327544289,1716209442680,-500.0,0.00019996,2]
[327544291,1716209442689,-500.0,0.00019996,2]
[327544293,1716209442700,-500.0,0.00019996,2]
[327544295,1716209442709,-500.0,0.00019996,2]
[327544297,1716209442718,-500.0,0.00019996,2]
[327544299,1716209442727,-500.0,0.00019996,2]
[327544301,1716209442737,-500.0,0.00019996,2]
[327544303,1716209442746,-450.0,0.00019996,2]
[327544305,1716209442755,-500.0,0.00019996,2]
[327544307,1716209442764,-500.0,0.00019996,2]
[327544309,1716209442773,-223.448425,0.00019996,2]
[327544311,1716209442783,-223.448425,0.00019996,2]
[327544313,1716209442792,-223.448425,0.00019996,2]
[327544315,1716209442802,-151.0,0.00019996,2]
[327544317,1716209442811,-151.0,0.00019996,2]
[327544318,1716209442820,-151.0,0.00019996,2]
[327544320,1716209442829,-223.448425,0.00019996,2]
[327544321,1716209442839,-223.448425,0.00019996,2]
[327544323,1716209442847,-223.448425,0.00019996,2]
[327544325,1716209442857,-151.0,0.00019996,2]
[327544327,1716209442866,-151.0,0.00019996,2]
[327544329,1716209442876,-151.0,0.00019996,2]
[327544331,1716209442885,-151.0,0.00019996,2]
[327544332,1716209442894,-151.0,0.00019996,2]
[327544334,1716209442904,-151.0,0.00019996,2]
[327544335,1716209442917,-151.0,0.00019996,2]
[327544336,1716209442927,-151.0,0.00019996,2]
[327544337,1716209442936,-151.0,0.00019996,2]
[327544338,1716209442947,-151.0,0.00019996,2]
[327544339,1716209442956,-151.0,0.00019996,2]
[327544340,1716209442966,-151.0,0.00019996,2]
[327544342,1716209442975,-151.0,0.00019996,2]
[327544344,1716209442985,-151.0,0.00019996,2]
[327544346,1716209442995,-151.0,0.00019996,2]
[327544347,1716209443004,-151.0,0.00019996,2]
[327544349,1716209443013,-151.0,0.00019996,2]
[327544350,1716209443022,-151.0,0.00019996,2]
[327544352,1716209443031,-151.0,0.00019996,2]
[327544353,1716209443042,-151.0,0.00019996,2]
[327544354,1716209443052,-151.0,0.00019996,2]
[327544355,1716209443061,-151.0,0.00019996,2]
[327544356,1716209443071,-151.0,0.00019996,2]
[327544357,1716209443080,-151.0,0.00019996,2]
[327544358,1716209443090,-151.0,0.00019996,2]
[327544359,1716209443099,-151.0,0.00019996,2]
[327544360,1716209443108,-151.0,0.00019996,2]
[327544361,1716209443118,-151.0,0.00019996,2]
[327544362,1716209443127,-62.18486449,0.00019996,2]
[327544363,1716209443140,-88.81513551,0.00019996,2]
[327544364,1716209443150,-153.054768,0.00019996,2]
[327544366,1716209443159,-88.94423234,0.00019996,2]
[327544367,1716209443414,-447.49518666,0.00019996,2]
[327544368,1716209443423,-536.439419,0.00019996,2]
[327544369,1716209443433,-536.439419,0.00019996,2]
[327544370,1716209443443,-536.439419,0.00019996,2]
[327544371,1716209443453,-536.439419,0.00019996,2]
[327544372,1716209443463,-536.439419,0.00019996,2]
[327544373,1716209443472,-313.261227,0.00019996,2]
[327544374,1716209443482,-313.261227,0.00019996,2]
[327544375,1716209443491,-178.552758,0.00019996,2]
[327544376,1716209443501,-313.261227,0.00019996,2]
[327544377,1716209443510,-178.552758,0.00019996,2]
[327544378,1716209443519,-313.261227,0.00019996,2]
[327544379,1716209443528,-26.80276632,0.00019996,2]
[327544380,1716209443540,-151.74999168,0.00019996,2]
[327544381,1716209443549,-151.0,0.00019996,2]
[327544382,1716209443558,-151.0,0.00019996,2]
[327544383,1716209443567,-27.25000832,0.00019996,2]
[327544422,1716209606951,150.0,9e-05,2]
[327544423,1716209726047,150.0,0.00016,2]
[327544424,1716209753782,3977.95327634,0.00016,2]
[327544425,1716209773829,1365.75129745,0.00016,2]
[327544426,1716209819100,390.0,0.00016,2]
[327544428,1716210233789,666.0,0.00025,60]
[327544429,1716210254002,418.51,0.0002651,120]
[327544430,1716210343112,-262.574904,0.00017307,2]
[327544431,1716210343132,-384.89893746,0.000178,2]
[327544432,1716210343152,-359.87975271,0.00017826,3]
[327544433,1716210347110,322.2968854,0.00013368,2]
[327544434,1716210406562,234.35329789,0.00013368,2]
[327544435,1716210408597,16150.29148189,0.00013368,2]
[327544436,1716210410755,281.61001373,0.00013368,2]
[327544437,1716210417146,156.6748638,0.00013368,2]
[327544438,1716210420591,12488.69385856,0.00013368,2]
[327544439,1716210422570,234.35329789,0.00013368,2]
[327544440,1716210430811,281.61001373,0.00013368,2]
[327544441,1716210436103,-1000.0,0.00017824,2]
[327544442,1716210442560,234.35329789,0.00013368,2]
[327544443,1716210448761,353.89280126,0.00013368,2]
[327544444,1716210458580,295.02941929,0.00013368,2]
[327544445,1716210485774,273.37336231,9.9e-05,2]
[327544447,1716210545130,-46720.44174326,0.00016825,2]
[327544448,1716210562194,-86059.90230564,0.00016825,2]
[327544449,1716210562215,-1289.5446396,0.00016979,2]
[327544524,1716210638478,-262.5749045,0.00017366,2]
[327544525,1716210638488,-43.25678867,0.00017824,2]
[327544526,1716210638497,-107.63880683,0.00017825,2]
[327544533,1716210640893,-405.84568177,0.00017825,2]
[327544534,1716210640903,-400.40930188,0.000179,2]
[327544535,1716210640913,-32682.57311865,0.00018,5]
[327544536,1716210640929,-17317.42688135,0.00018,5]
[327544537,1716210640939,-256.59929164,0.00018732,2]
[327544538,1716210640949,-186.39835571,0.00018831,2]
[327544539,1716210640959,-274.17394813,0.00018831,2]
[327544540,1716210640968,-1094.28810056,0.00018832,2]
[327544541,1716210640978,-3353.45888483,0.00019,2]
[327544548,1716210643638,-1031.10582645,0.00019,2]
[327544549,1716210643648,-500.0,0.00019178,2]
[327544550,1716210643657,-500.0,0.00019178,2]
[327544551,1716210643667,-256.59929162,0.00019315,2]
[327544552,1716210643676,-150.145,0.00019379,2]
[327544553,1716210643686,-412.66303383,0.00019535,2]
[327544554,1716210643695,-620.00000001,0.00019799,2]
[327544555,1716210643705,-2941.83425105,0.00019897,2]
[327544556,1716210643716,-1276.5,0.00019897,2]
[327544572,1716210646400,-40455.1461424,0.00019897,2]
[327544573,1716210646409,-256.59929162,0.00019897,2]
[327544574,1716210646419,-500.0,0.00019996,2]
[327544575,1716210646428,-500.0,0.00019996,2]
[327544576,1716210646438,-269.49528319,0.00019996,2]
[327544577,1716210646447,-358.12571931,0.00019996,2]
[327544578,1716210646457,-500.0,0.00019996,2]
[327544579,1716210646466,-500.0,0.00019996,2]
[327544583,1716210646577,-500.0,0.00019996,2]
[327544584,1716210646587,-500.0,0.00019996,2]
[327544585,1716210646596,-500.0,0.00019996,2]
[327544586,1716210646606,-500.0,0.00019996,2]
[327544587,1716210646616,-500.0,0.00019996,2]
[327544588,1716210646626,-6643.78508666,0.00019997,3]
[327544589,1716210646635,-1888.85118654,0.00019997,3]
[327544590,1716210646645,-333.40190303,0.00019997,2]
[327544591,1716210646654,-920.93404353,0.00019997,2]
[327544592,1716210646664,-283.58690319,0.00019997,2]
[327544593,1716210646673,-354.75633154,0.00019997,2]
[327544594,1716210646683,-835.01810793,0.00019997,2]
[327544595,1716210646692,-151.0,0.00019997,2]
[327544596,1716210646701,-151.0,0.00019997,2]
[327544597,1716210646712,-151.0,0.00019997,2]
[327544598,1716210646721,-160.796947,0.00019997,2]
[327544599,1716210646732,-151.0,0.00019997,2]
[327544600,1716210646741,-198.108514,0.00019997,2]
[327544601,1716210646751,-911.347874,0.00019997,2]
[327544602,1716210646760,-911.347874,0.00019997,2]
[327544603,1716210646769,-911.347874,0.00019997,2]
[327544604,1716210646778,-911.347874,0.00019997,2]
[327544605,1716210646788,-911.347874,0.00019997,2]
[327544606,1716210646798,-911.347874,0.00019997,2]
[327544607,1716210646807,-911.347874,0.00019997,2]
[327544608,1716210646817,-911.347874,0.00019997,2]
[327544609,1716210646827,-911.347874,0.00019997,2]
[327544610,1716210646836,-911.347874,0.00019997,2]
[327544611,1716210646846,-911.347874,0.00019997,2]
[327544612,1716210646856,-911.347874,0.00019997,2]
[327544613,1716210646865,-911.347874,0.00019997,2]
[327544614,1716210646875,-22.10681591,0.00019997,2]
[327544615,1716210692065,273.37336231,9.9e-05,2]
[327544616,1716210698095,1350.72680674,9.999e-05,2]
[327544617,1716210701151,273.37336231,9.9e-05,2]
[327544618,1716210704009,371.12891802,9.999e-05,2]
[327544619,1716210711456,194.84154417,9.9e-05,2]
[327544624,1716210752903,1684.33877323,0.00015,2]
[327544625,1716210754792,154.79876161,9.999e-05,2]
[327544628,1716211052272,364.99536497,9.999e-05,2]
[327544629,1716211068244,364.99536497,9.999e-05,2]
[327544630,1716211079726,888.0,0.00025,60]
[327544631,1716211086223,354.00252072,9.999e-05,2]
[327544632,1716211393870,2756.91,0.00019,10]
[327544633,1716211393907,249.72229401,9.999e-05,2]
[327544647,1716211545161,-1104.46928518,0.00018394,2]
[327544650,1716211583929,1154.1974445,0.00019,30]
[327544652,1716211603928,963.35709395,0.00019,30]
[327544669,1716211832892,-351.55909386,0.00018181,2]
[327544672,1716211832911,-888.23740997,0.00018181,2]
[327544716,1716211838769,-646.03698967,0.00018181,2]
[327544717,1716211838779,-380.2651391,0.00018182,2]
[327544718,1716211838788,-1897.98260865,0.00018196,2]
[327544719,1716211838797,-590.3458183,0.00018198,2]
[327544720,1716211838806,-1579.2567415,0.00018248,2]
[327544721,1716211838818,-4550.3981417,0.00018248,2]
[327544722,1716211838827,-250.0,0.00018271,2]
[327544723,1716211838837,-2844.6437608,0.00018286,2]
[327544724,1716211838847,-1021.5844455,0.00018395,2]
[327544725,1716211838856,-986.45755068,0.00018737,2]
[327544726,1716211838865,-2106.03953742,0.000189,2]
[327544727,1716211838875,-2697.56805845,0.0001947,2]
[327544728,1716211838884,-4222.10020806,0.00019592,2]
[327544729,1716211838893,-393.80537543,0.00019709,2]
[327544730,1716211838903,-610.93259607,0.00019891,2]
[327544731,1716211838913,-465.28408836,0.00019892,2]
[327544732,1716211838922,-610.93259606,0.00019893,2]
[327544733,1716211838932,-610.93259606,0.00019894,2]
[327544734,1716211838941,-610.93259606,0.00019896,2]
[327544735,1716211838952,-610.93259606,0.00019897,2]
[327544736,1716211838962,-25098.81649309,0.000199,2]
[327544737,1716211838971,-249.72229401,0.00019991,2]
[327544738,1716211838981,-276.89767609,0.00019991,2]
[327544739,1716211838991,-500.0,0.00019991,2]
[327544740,1716211839000,-362.00850138,0.00019991,2]
[327544741,1716211839011,-845.0410987,0.00019992,2]